Cogmind - Beta 14 @@@ ROGUE MODE // 2024.09.03 @ 22:31:34 Player: Unit6544 Result: Destroyed by S-10 Pest with Light Assault Rifle Performance ------------- Evolutions (1) 500 Regions Visited (3) 600 Robots Destroyed (30) 150 Value Destroyed (578) 578 Prototype IDs (1) 20 Alien Tech Used (0) 0 Bonus (0) 0 TOTAL SCORE: 1848 Bonus ------- None Cogmind --------- Core Integrity 0/400 Matter 256/300 Energy 93/100 System Corruption 11% Temperature Cool (2) Movement Core (100) Ox1 Location -9/Mines Parts ------- > --- POWER (1) -------- (None) > --- PROPULSION (3) --- (None) > --- UTILITY (3) ------ Weapon Shielding > --- WEAPON (2) ------- Beam Cannon Mining Laser > --- INVENTORY (5) ---- Light Ion Engine Wheel Light Assault Rifle Mining Laser Peak State ------------ > --- POWER ------------ Heavy Ion Engine > --- PROPULSION ------- Improved Aluminum Leg Improved Aluminum Leg Improved Aluminum Leg > --- UTILITY ---------- Weapon Shielding Medium Armor Plating Medium Armor Plating > --- WEAPON ----------- Beam Cannon Shotgun > --- INVENTORY -------- Ion Engine Weapon Shielding EM Pulse Gun [Rating: 17] Favorites ----------- Power Heavy Ion Engine Engine Heavy Ion Engine Propulsion Improved Aluminum Leg Treads Light Treads Leg Improved Aluminum Leg Wheel Wheel Utility Medium Armor Plating Device ECM Suite Storage Small Storage Unit Protection Medium Armor Plating Weapon Beam Cannon Energy Gun EM Pulse Gun Energy Cannon Beam Cannon Ballistic Gun Shotgun Special Weapon Mining Laser Build | -11 -10 -9 -9 ------- Run | Yrd Mat Mat Min Slots Evolved 2 | . . 2 . Power . | . . . . Propulsion 1 | . . 1 . Utility 1 | . . 1 . Weapon . | . . . . Parts Attached 33 | 7 5 13 8 Power 6 | 2 . 1 3 Engine 6 | 2 . 1 3 Core . | . . . . Reactor . | . . . . Propulsion 8 | 2 2 2 2 Treads 2 | 2 . . . Leg 4 | . 2 2 . Wheel 2 | . . . 2 Hover . | . . . . Flight . | . . . . Utility 9 | 1 3 4 1 Device 1 | . 1 . . Storage 1 | 1 . . . Processor . | . . . . Hackware . | . . . . Protection 7 | . 2 4 1 Artifact . | . . . . Weapon 10 | 2 . 6 2 Energy Gun 2 | 1 . 1 . Energy Cannon 3 | . . 2 1 Ballistic Gun 4 | 1 . 3 . Ballistic Cannon . | . . . . Launcher . | . . . . Special Weapon 1 | . . . 1 Impact Weapon . | . . . . Slashing Weapon . | . . . . Piercing Weapon . | . . . . Special Melee Weapon . | . . . . Unidentified Prototypes 1 | . . 1 . Parts Lost 13 | . . 1 12 Power 3 | . . . 3 Propulsion 4 | . . . 4 Utility 4 | . . 1 3 Weapon 2 | . . . 2 Highest Loss Streak 6 | . . 1 6 To Critical Strikes . | . . . . Average Slot Usage (%) 84 | . 97 98 62 Engine 10 | . 14 11 9 Treads 4 | . 25 . . Leg 19 | . 2 33 13 Wheel 1 | . . . 3 Device 2 | . 10 . . Storage 2 | . 13 . . Protection 19 | . 1 31 15 Energy Gun 5 | . 14 7 . Energy Cannon 5 | . . 6 7 Ballistic Gun 10 | . 14 8 12 Peak Build Rating 17 | 6 11 17 17 Average Rating 11 | 4 7 16 9 On Entrance 8 | . 6 11 17 Naked Turns . | . . . . Heaviest Build 31 | 13 22 31 23 Greatest Support 40 | 40 40 39 39 Greatest Overweight (x) 3 | 3 1 1 3 Average Overweight (x) . | . . . . Largest Inventory Capacity 8 | 8 8 5 5 Average Capacity 5 | 7 7 5 5 Most Carried 7 | 4 7 5 5 Average Carried 3 | 1 1 3 3 Final Capacity 8 | 8 5 5 5 Final Carried 5 | 1 5 4 4 Class Distribution -------------------- 100% | Mutant Dominant Class ---------------- Mutant | -10/Materials Mutant | -9/Materials Mutant | -9/Mines Resources | -11 -10 -9 -9 ----------- Run | Yrd Mat Mat Min Matter Collected 876 | 234 56 332 254 Remotely . | . . . . Salvage Created 893 | . 189 525 179 Parts 59 | . 11 33 15 Haulers Intercepted . | . . . . Recyclers Shooed 1 | . 1 . . Parts Field Recycled . | . . . . Retrieved Matter . | . . . . Parts Self-Destructed . | . . . . Prevented . | . . . . Kills | -11 -10 -9 -9 ------- Run | Yrd Mat Mat Min Combat Hostiles Destroyed 32 | . 2 13 17 Guns 21 | . 1 10 10 Cannons 8 | . . 2 6 AOE 2 | . 1 . 1 Classes Destroyed 9 | . 4 4 1 Worker 2 | . 1 . 1 Recycler 1 | . 1 . . Operator 1 | . . 1 . Watcher 2 | . 2 . . Swarmer 15 | . 2 4 9 Grunt 4 | . . 4 . Brawler 1 | . . 1 . Sentry 4 | . . 4 . Assembled 8 | . . . 8 Best Kill Streak 4 | . 2 4 4 Combat Bots Only 4 | . 2 4 4 Max Kills in Single Turn 2 | . 2 1 2 Gunslinging . | . . . . Exploded 1 | . 1 . 1 Melee . | . . . . Uniques/NPCs Destroyed . | . . . . Combat | -11 -10 -9 -9 -------- Run | Yrd Mat Mat Min Hostile Shots Fired 206 | . 8 57 141 Missed 57 | . 2 17 38 Damage Taken 1790 | . 45 532 1213 Core 411 | . 8 72 331 Absorbed by Shields . | . . . . Redirected to Shielding 151 | . . 16 135 Core Remaining (%) 98 | 100 96 . . Volleys Fired 110 | . 10 48 52 Largest 2 | . 2 2 2 Hottest 100 | . 60 100 83 Shots Fired 209 | . 20 94 95 Gun 165 | . 20 75 70 Cannon 44 | . . 19 25 Launcher . | . . . . Special . | . . . . Kinetic 107 | . 10 27 70 Thermal 44 | . . 19 25 Explosive . | . . . . Electromagnetic 58 | . 10 48 . Robot Hit Streak 12 | . 3 12 6 Robot Miss Streak 9 | . 3 9 4 Penetration Max . | . . . . Secondary Targets 2 | . 1 . 1 Max Gunslinging Chain 1 | . 1 . 1 Shots Hit Robots 108 | . 10 49 49 Core Hits 48 | . 7 21 20 Critical Kills 1 | . . 1 . Critical Parts Destroyed . | . . . . Critical Strikes 2 | . . 2 . Meltdown 1 | . . 1 . Corrupt 1 | . . 1 . Melee Attacks . | . . . . Impact . | . . . . Slashing . | . . . . Piercing . | . . . . Sneak Attacks . | . . . . Combat Hostiles . | . . . . Follow-up Attacks . | . . . . Damage Inflicted 1568 | . 179 712 677 Guns 1141 | . 107 569 465 Cannons 353 | . . 141 212 Explosions 72 | . 72 . . Melee . | . . . . Ramming 2 | . . 2 . Kinetic 719 | . 16 238 465 Thermal 425 | . 72 141 212 Explosive . | . . . . Electromagnetic 422 | . 91 331 . Impact . | . . . . Slashing . | . . . . Piercing . | . . . . Highest Corruption 11 | . . . 11 Average Corruption 10 | . . . 10 Corruption Purged . | . . . . Corruption Blocked . | . . . . Effects 19 | . . . 19 Message Errors 4 | . . . 4 Matter Fused 2 | . . . 2 Heat Flow Errors 4 | . . . 4 Energy Discharges 3 | . . . 3 Data Loss (minor) 1 | . . . 1 Data Loss (major) 1 | . . . 1 Misfires 1 | . . . 1 Weapon Failures 3 | . . . 3 Overload Shots . | . . . . Overflow Damage 31 | . . . 31 Projectiles 31 | . . . 31 Explosions . | . . . . Melee . | . . . . Knockbacks . | . . . . Impact . | . . . . Kinetic . | . . . . Secondary . | . . . . Self-Inflicted Damage . | . . . . Shots . | . . . . Rammed . | . . . . Targets Rammed 1 | . . 1 . Kicked 1 | . . 1 . Crushed . | . . . . Highest Temperature 628 | . 40 628 268 Average Temperature 130 | . 15 165 77 Received Heat Transfer 163 | . . 123 40 Effects 23 | . . 20 3 Shutdowns 4 | . . 4 . Energy Bleed 4 | . . 3 1 Interference 5 | . . 3 2 Matter Decay 2 | . . 2 . Short Circuit 1 | . . 1 . Damage (minor) 4 | . . 4 . Damage (major) 2 | . . 2 . Damage (core) 1 | . . 1 . Siege Activations . | . . . . Robots Corrupted . | . . . . Combat Hostiles . | . . . . Parts Fried 1 | . . 1 . Impact Corruptions . | . . . . Robots Melted 1 | . . 1 . Combat Hostiles 1 | . . 1 . Parts Melted 1 | . . 1 . Heat Transferred 790 | . 50 296 444 Parts Sabotaged . | . . . . Parts Stolen . | . . . . Parts Stripped . | . . . . Power Chain Reactions 2 | . 2 . . Alert | -11 -10 -9 -9 ------- Run | Yrd Mat Mat Min Peak Influence 314 | . 115 314 267 Initial 122 | . . 48 122 Average 151 | . 45 202 167 Maximum Alert Level 1 | . . 1 1 Low Security (%) 52 | 100 100 33 44 Level 1 47 | . . 66 55 Level 2 . | . . . . Level 3 . | . . . . Level 4 . | . . . . Level 5 . | . . . . High Security . | . . . . Max Security . | . . . . Squads Dispatched 1 | . . 1 . Investigation 1 | . . 1 . Extermination . | . . . . Reinforcement . | . . . . Assault . | . . . . Garrison . | . . . . Intercept . | . . . . Searches Triggered . | . . . . Construction Impeded . | . . . . Haulers Reinforced . | . . . . Active Scanning Responses . | . . . . Cargo Convoy Interrupts . | . . . . Stealth | -11 -10 -9 -9 --------- Run | Yrd Mat Mat Min Distress Signals . | . . . . Communications Jammed . | . . . . Distress Signals . | . . . . Times Spotted 55 | . 6 20 29 Peak Tracking Total 8 | . 3 5 8 Tactical Retreats 5 | . 1 1 3 Traps | -11 -10 -9 -9 ------- Run | Yrd Mat Mat Min Traps Triggered 1 | . . 1 . Indirectly . | . . . . Trap Hack Attempts . | . . . . Triggered . | . . . . Disarmed . | . . . . Reprogrammed . | . . . . Reused . | . . . . Traps Extracted . | . . . . Installed . | . . . . Triggered . | . . . . Machines | -11 -10 -9 -9 ---------- Run | Yrd Mat Mat Min Machines Disabled 2 | . 1 1 . Max in Single Turn 1 | . 1 1 . Machines Repaired . | . . . . Machines Dismantled . | . . . . Machines Sabotaged . | . . . . Overloaded Fab Kills . | . . . . Hacking | -11 -10 -9 -9 --------- Run | Yrd Mat Mat Min Machines Accessed 2 | . 1 1 . Terminals 2 | . 1 1 . Fabricators . | . . . . Repair Stations . | . . . . Recycling Units . | . . . . Scanalyzers . | . . . . Garrison Access . | . . . . Total Hacks 4 | . 2 2 . Successful 3 | . 2 1 . Failed 1 | . . 1 . Catastrophic . | . . . . Database Lockouts . | . . . . Manual . | . . . . Terminals 4 | . 2 2 . Fabricators . | . . . . Repair Stations . | . . . . Recycling Units . | . . . . Scanalyzers . | . . . . Garrison Access . | . . . . Terminal Hacks 3 | . 2 1 . Alert Level 1 | . 1 . . Registered Components 1 | . 1 . . Zone Layout 1 | . . 1 . Fabricator Hacks . | . . . . Repair Station Hacks . | . . . . Recycling Unit Hacks . | . . . . Scanalyzer . | . . . . Garrison Access Hacks . | . . . . Unauthorized Hacks . | . . . . Terminals . | . . . . Fabricators . | . . . . Repair Stations . | . . . . Recycling Units . | . . . . Scanalyzers . | . . . . Garrison Access . | . . . . Data Cores Recovered 1 | . . 1 . Used . | . . . . Hacking Detections 1 | . . 1 . Full Trace Events . | . . . . Feedback Events . | . . . . Feedback Blocked . | . . . . Robot Schematics Acquired . | . . . . Robots Built . | . . . . Authchips . | . . . . Time . | . . . . Total Robot Build Rating . | . . . . Part Schematics Acquired . | . . . . Parts Built . | . . . . Authchips . | . . . . Time . | . . . . Total Part Build Rating . | . . . . Parts Repaired . | . . . . Time . | . . . . Parts Recycled . | . . . . Recycled Matter . | . . . . Retrieved Matter . | . . . . Retrieved Components . | . . . . Parts Scanalyzed . | . . . . Part Schematics Acquired . | . . . . Parts Damaged . | . . . . Bothacking | -11 -10 -9 -9 ------------ Run | Yrd Mat Mat Min Used RIF Installer . | . . . . Robots Hacked . | . . . . Non-combat . | . . . . Combat . | . . . . Robot Hacks Applied . | . . . . Relay Couplers Released . | . . . . Fabnet Peak Effective % . | . . . . Robots Rewired . | . . . . Allies Hacked . | . . . . Hacks Repelled . | . . . . Allies | -11 -10 -9 -9 -------- Run | Yrd Mat Mat Min Total Allies . | . . . . Largest Group . | . . . . Highest-Rated Group . | . . . . Highest-Rated Ally . | . . . . Total Orders . | . . . . Ally Attacks . | . . . . Total Damage . | . . . . Kills . | . . . . Allies Corrupted . | . . . . Allies Melted . | . . . . Intel | -11 -10 -9 -9 ------- Run | Yrd Mat Mat Min Robot Analysis Total . | . . . . Derelict Logs Recovered 1 | . . . 1 Drone Launches . | . . . . Drone Recoveries . | . . . . Exploration | -11 -10 -9 -9 ------------- Run | Yrd Mat Mat Min Turns Passed 1729 | 73 330 694 632 Spaces Moved 869 | 40 176 371 282 Core 13 | 11 . . 2 Treads 183 | 29 154 . . Legs 576 | . 22 371 183 Wheels 97 | . . . 97 Hover . | . . . . Flight . | . . . . Fastest Speed 50 | 50 120 120 80 Average Speed 131 | 148 155 123 125 Slowest Speed 200 | 200 190 190 200 Overloaded Moves . | . . . . Propulsion Burnouts . | . . . . Robots Hopped . | . . . . Cave-ins Triggered . | . . . . Exploration Rate (%) 36 | 3 41 33 67 Regions Visited 3 Branch Regions 1 Pre-discovered Areas . | . . . . Known Exits Taken . | . . . . Unknown Exits Taken 3 | 1 1 1 . Scrap Searched . | . . . . Spaces Dug . | . . . . Terrain Destroyed 10 | . 10 . . Melee . | . . . . Projectile . | . . . . AOE 10 | . 10 . . Terrain Rammed . | . . . . Walls Destroyed . | . . . . Machines Disabled . | . . . . Actions | -11 -10 -9 -9 --------- Run | Yrd Mat Mat Min Total 1244 | 53 215 512 464 Wait 183 | . 12 63 108 Move 866 | 39 175 370 282 Hop . | . . . . Pick Up 35 | 7 9 9 10 Fast Attach . | . . . . Attach 18 | 6 2 4 6 Detach 1 | . . 1 . Swap 15 | 1 3 9 2 Drop 15 | . 4 7 4 Fire 110 | . 10 48 52 Melee . | . . . . Ram . | . . . . Kick 1 | . . 1 . Crush . | . . . . Escape Stasis . | . . . . Rewire . | . . . . Trap . | . . . . Miscellaneous . | . . . . Route ------- -11/Scrapyard -10/Materials (discovered 2 exits: *Mat / [*Min]) -9/Materials (discovered 2 exits: [*Min] / [*Sto]) -9/Mines History --------- Turn | Location | Event 8 | -11/Scrapyard | Discovered new exit (range 15) 74 | -11/Scrapyard | Entered Materials 74 | -10/Materials | Discovered new exit (range 8) 311 | -10/Materials | Build established: Mutant 395 | -10/Materials | Discovered new exit (range 8) 404 | -10/Materials | Entered another Materials area 404 | -9/Materials | Evolved 2 slots: Propulsion x1, Utility x1 768 | -9/Materials | Discovered new exit (range 12) 1087 | -9/Materials | Discovered new exit (range 10) 1098 | -9/Materials | Entered Mines 1198 | -9/Mines | Assembled infested the area 1287 | -9/Mines | Core integrity fell below 50% 1296 | -9/Mines | System corruption reached 10% 1326 | -9/Mines | Lost 6 parts (2p1n2u1w) 1448 | -9/Mines | Core integrity fell below 20% 1650 | -9/Mines | Learned Materials emergency access door positions 1730 | -9/Mines | Destroyed by S-10 Pest with Light Assault Rifle Last Messages --------------- Acquired 11 matter. Acquired Mining Laser. K-01 Serf destroyed. as-86673 destroyed. O:C2YK/SRMBJXSZ1VYE|,5 JR,EVUT>K Wheel destroyed. Shotgun destroyed. as-78245 destroyed. Acquired 10 matter. Acquired 2 matter. System corrupted: Heat flow error (+239). System corrupted: Heat flow error (+290). Acquired derelict log, extracted data. Data stored: Materials emergency access points. Overheating: Energy bleed (-31). System corrupted: Matter fused (-9). System corrupted: Energy discharge (-100). Wheel destroyed. S-10 Pest destroyed. Imp. Ion Engine destroyed. Map ----- +----------------------------------------------------+ | ?????????????????????????????????????????????????? | | ?????????????????????????????????????????????????? | | ?????????????????????????????????????????????????? | | ?????????????????????????????????????????????????? | | ?????????????????????????????????????????????????? | | ?????????????????????????????????????????????????? | | ?????????????????????????????????????????????????? | | ?????????????????????????????????????????????????? | | ?????????????????????????????????????????????????? | | ?????????????????????????????????????????????????? | | ?????????????????????????????????????????????????? | | ?????????????????????????????????????????????????? | | ?????????????????????????????????????????????????? | | ?????????????????????????????????????????????????? | | ?????????????????????###???####??????????????????? | | ????????????????????? #?## ##?????????????????? | | ?????????????????????# ### ##????????????????? | | ?????????????????????#[%## ##???????????????? | | ?????????????????????# =## #???????????????? | | ?????????????????????# #?# #???????????????? | | ????????????????????## #??# #?????????###???? | | ???????????????????## #??## #???????## #???? | | ????????????????#### #???# ##??????## #???? | | ????????????????# ss##?## #??????## ##??? | | ????????????????# ### ##??????# #??? | | ???????????????# @ #??????## ##?? | | ?????????????# ##????## ### | | ????????????# ### #????# # | | ????????????## ## ##?## #????# | | ?????????????##??## #???# ##???# | | ?????????????????## #??## ###??# # | | ????????????????## #?## ##??# #? | | ########??????### ##?#!% #### #?? | | = #?????## ####??# ### ## #??? | | #### ####### ##?????## ##?## ##?## | | #??# #???????#%#????## ###### | | #??# ######## ##???????# #?????# ##??## | | #??# #??????####????????# #????## ##### | | #??# #??????????????????# #????# """ | | #### #???????####???????# #???# """ | | ## #??????## ####????# #???# ## """ | | ## ######## ##???# #???## #### | | #???# #????##### ##??## | | ## ##### #######??# #????### | | ############ = #?? ??????## | | ##?????????#### ######!#### #?# ???????# | | ####?????????#####????#%#??# #?## #???????# | | ##?????????????????# #??# #######???????# | | #?????????????????# #??# ! *#????????# | | #?????????????????# #??#####* #????????# | +----------------------------------------------------+ Best States ------------- Heat Dissipation 28 Energy Generation 14 Energy Capacity 280 Matter Stores 300 Matter Capacity 300 Sight Range 16 Terrain Scan Density 10 ECM Strength 1 Armor Coverage 675 Propulsion Shielding 33 Weapon Shielding 33 Evasion (%) 55 Recoil Reduction 2 Item Schematics ----------------- None Robot Schematics ------------------ None Fabricated ------------ Nothing Alien Tech Used ----------------- None Achievements -------------- None Challenges ------------ None Game ------ Seed DefenseControlGravjet Manual? 0 Play Time 00:20:24 Cumulative 10.0 hours Start 2024.09.03 @ 22:12:53 End 2024.09.03 @ 22:31:34 Sessions 1 Manual Loads 0 Difficulty Rogue Special Mode None Game No. 23 Rogue 23 Adventurer 0 Explorer 0 Win Type - Total 0 Types 0/0/0/0/0/0/0/0/0 Lore% 3 Gallery% 14 Achievement% 17 Wizard Run 0 Options --------- Layout 1 ASCII 0 Keyboard 0 Movement Mouse Keybinds 0 Fullscreen 1 Font 24/Smallcaps Map View 50x40 Zoom Use 0% Tactical HUD 0 Map Filters NONE Filters NONE Steam 1 RUN: dc7a82c2-76e4-4d19-8796-1b9fe87959bd